[Event "Titled Tuesday Blitz February 28 Early 2023"]
[White "Toktomushev, Teimur"]
[Black "Yurasova, Daria"]
[WhiteFideId "14176726"]
[BlackFideId "34146919"]
[WhiteElo "2106"]
[BlackElo "2134"]
[Result "0-1"]
[Round "08"]
[TimeControl "180+2"]
[Date "2023.02.28"]
[WhiteClock "0:00:01"]
[BlackClock "0:00:17"]

1. d4 {[%clk 0:03:00]}  d5 {[%clk 0:02:57]} 2. c4 {[%clk 0:02:59]}  dxc4 {[%clk 0:02:57]} 3. e3 {[%clk 0:02:59]}  e5 {[%clk 0:02:57]} 4. Bxc4 {[%clk 0:02:59]}  exd4 {[%clk 0:02:57]} 5. exd4 {[%clk 0:03:00]}  Nf6 {[%clk 0:02:58]} 6. Qb3 {[%clk 0:02:57]}  Qd7 {[%clk 0:02:55]} 7. Nf3 {[%clk 0:02:51]}  Bd6 {[%clk 0:02:36]} 8. O-O {[%clk 0:02:07]}  O-O {[%clk 0:02:33]} 9. Nc3 {[%clk 0:02:07]}  Nc6 {[%clk 0:02:33]} 10. Bg5 {[%clk 0:02:04]}  Qf5 {[%clk 0:02:32]} 11. Qb5 {[%clk 0:01:16]}  a6 {[%clk 0:02:25]} 12. Qxf5 {[%clk 0:01:15]}  Bxf5 {[%clk 0:02:26]} 13. Rfe1 {[%clk 0:00:52]}  Rfe8 {[%clk 0:02:24]} 14. h3 {[%clk 0:00:48]}  Ne4 {[%clk 0:02:18]} 15. Be3 {[%clk 0:00:21]}  h6 {[%clk 0:02:12]} 16. Rac1 {[%clk 0:00:09]}  Rad8 {[%clk 0:02:09]} 17. Nd5 {[%clk 0:00:06]}  Ne7 {[%clk 0:02:02]} 18. Nxe7+ {[%clk 0:00:04]}  Rxe7 {[%clk 0:02:02]} 19. Bd5 {[%clk 0:00:05]}  c6 {[%clk 0:02:01]} 20. Bb3 {[%clk 0:00:04]}  Rde8 {[%clk 0:01:57]} 21. d5 {[%clk 0:00:04]}  c5 {[%clk 0:01:52]} 22. g4 {[%clk 0:00:03]}  Bh7 {[%clk 0:01:51]} 23. Kg2 {[%clk 0:00:04]}  b5 {[%clk 0:01:51]} 24. a4 {[%clk 0:00:03]}  c4 {[%clk 0:01:51]} 25. Bc2 {[%clk 0:00:03]}  Nf6 {[%clk 0:01:39]} 26. Bxh7+ {[%clk 0:00:03]}  Kxh7 {[%clk 0:01:40]} 27. axb5 {[%clk 0:00:03]}  axb5 {[%clk 0:01:40]} 28. Nd4 {[%clk 0:00:04]}  Nxd5 {[%clk 0:01:31]} 29. Nxb5 {[%clk 0:00:04]}  Bf4 {[%clk 0:01:05]} 30. Kf3 {[%clk 0:00:04]}  Bxe3 {[%clk 0:01:04]} 31. fxe3 {[%clk 0:00:03]}  Rxe3+ {[%clk 0:01:04]} 32. Rxe3 {[%clk 0:00:04]}  Rxe3+ {[%clk 0:01:05]} 33. Kf2 {[%clk 0:00:04]}  Rb3 {[%clk 0:01:05]} 34. Nd4 {[%clk 0:00:02]}  Rxb2+ {[%clk 0:01:05]} 35. Kf3 {[%clk 0:00:03]}  c3 {[%clk 0:01:02]} 36. Ke4 {[%clk 0:00:03]}  Nf6+ {[%clk 0:01:01]} 37. Kd3 {[%clk 0:00:03]}  Rh2 {[%clk 0:01:01]} 38. Kxc3 {[%clk 0:00:03]}  Rxh3+ {[%clk 0:01:01]} 39. Kc4 {[%clk 0:00:03]}  Nxg4 {[%clk 0:01:01]} 40. Kd5 {[%clk 0:00:02]}  Nf6+ {[%clk 0:01:02]} 41. Ke5 {[%clk 0:00:02]}  Rh5+ {[%clk 0:01:02]} 42. Kf4 {[%clk 0:00:02]}  Rh4+ {[%clk 0:01:01]} 43. Ke3 {[%clk 0:00:03]}  Re4+ {[%clk 0:01:01]} 44. Kd3 {[%clk 0:00:03]}  Re5 {[%clk 0:01:01]} 45. Rf1 {[%clk 0:00:04]}  Ra5 {[%clk 0:00:58]} 46. Ke3 {[%clk 0:00:03]}  h5 {[%clk 0:00:58]} 47. Rg1 {[%clk 0:00:02]}  g6 {[%clk 0:00:58]} 48. Rf1 {[%clk 0:00:02]}  Kg7 {[%clk 0:00:59]} 49. Rb1 {[%clk 0:00:03]}  Ng4+ {[%clk 0:00:59]} 50. Ke4 {[%clk 0:00:02]}  h4 {[%clk 0:00:55]} 51. Rb7 {[%clk 0:00:02]}  h3 {[%clk 0:00:49]} 52. Ne6+ {[%clk 0:00:01]}  Kf6 {[%clk 0:00:48]} 53. Nf4 {[%clk 0:00:01]}  h2 {[%clk 0:00:43]} 54. Rb6+ {[%clk 0:00:01]}  Kg7 {[%clk 0:00:42]} 55. Rb1 {[%clk 0:00:02]}  Ra4+ {[%clk 0:00:39]} 56. Kf3 {[%clk 0:00:02]}  Rxf4+ {[%clk 0:00:33]} 57. Kg3 {[%clk 0:00:02]}  Nf2 {[%clk 0:00:34]} 58. Kxh2 {[%clk 0:00:02]}  Nd3 {[%clk 0:00:32]} 59. Kg3 {[%clk 0:00:03]}  Rf5 {[%clk 0:00:33]} 60. Rd1 {[%clk 0:00:03]}  Ne5 {[%clk 0:00:32]} 61. Kg2 {[%clk 0:00:03]}  Ng4 {[%clk 0:00:30]} 62. Kg3 {[%clk 0:00:03]}  Nf6 {[%clk 0:00:29]} 63. Rd3 {[%clk 0:00:03]}  Ne4+ {[%clk 0:00:29]} 64. Kg2 {[%clk 0:00:03]}  g5 {[%clk 0:00:29]} 65. Re3 {[%clk 0:00:03]}  Nc5 {[%clk 0:00:29]} 66. Rc3 {[%clk 0:00:03]}  Ne6 {[%clk 0:00:30]} 67. Rc4 {[%clk 0:00:03]}  Kg6 {[%clk 0:00:30]} 68. Rc6 {[%clk 0:00:03]}  g4 {[%clk 0:00:30]} 69. Rc8 {[%clk 0:00:04]}  Kg5 {[%clk 0:00:30]} 70. Rg8+ {[%clk 0:00:04]}  Kf4 {[%clk 0:00:31]} 71. Ra8 {[%clk 0:00:04]}  Re5 {[%clk 0:00:30]} 72. Ra4+ {[%clk 0:00:05]}  Re4 {[%clk 0:00:30]} 73. Ra7 {[%clk 0:00:05]}  f5 {[%clk 0:00:30]} 74. Ra3 {[%clk 0:00:06]}  Kg5 {[%clk 0:00:29]} 75. Ra8 {[%clk 0:00:06]}  f4 {[%clk 0:00:28]} 76. Rg8+ {[%clk 0:00:05]}  Kf5 {[%clk 0:00:29]} 77. Ra8 {[%clk 0:00:04]}  g3 {[%clk 0:00:27]} 78. Ra5+ {[%clk 0:00:03]}  Kg4 {[%clk 0:00:27]} 79. Ra8 {[%clk 0:00:02]}  Ng5 {[%clk 0:00:26]} 80. Ra3 {[%clk 0:00:02]}  f3+ {[%clk 0:00:26]} 81. Kf1 {[%clk 0:00:02]}  g2+ {[%clk 0:00:25]} 82. Kg1 {[%clk 0:00:02]}  Kg3 {[%clk 0:00:22]} 83. Re3 {[%clk 0:00:01]}  Kf4 {[%clk 0:00:17]} 0-1


[Site "https://www.chess.com"]

[Event "Titled Tuesday Blitz February 28 Early 2023"]
[White "Ljukin, Sergei"]
[Black "Gutkin, Ilya"]
[WhiteFideId "14102200"]
[BlackFideId "16203470"]
[WhiteElo "2312"]
[BlackElo "2265"]
[Result "1-0"]
[Round "08"]
[TimeControl "180+2"]
[Date "2023.02.28"]
[WhiteClock "0:00:02"]
[BlackClock "0:00:02"]

1. e4 {[%clk 0:02:55]}  c5 {[%clk 0:03:00]} 2. Nf3 {[%clk 0:02:54]}  Nc6 {[%clk 0:02:59]} 3. d4 {[%clk 0:02:54]}  cxd4 {[%clk 0:03:00]} 4. Nxd4 {[%clk 0:02:55]}  Nf6 {[%clk 0:03:00]} 5. Nc3 {[%clk 0:02:55]}  e5 {[%clk 0:03:00]} 6. Ndb5 {[%clk 0:02:55]}  d6 {[%clk 0:03:01]} 7. Nd5 {[%clk 0:02:55]}  Nxd5 {[%clk 0:03:00]} 8. exd5 {[%clk 0:02:56]}  Ne7 {[%clk 0:02:59]} 9. c3 {[%clk 0:02:56]}  Ng6 {[%clk 0:02:52]} 10. Qa4 {[%clk 0:02:54]}  Bd7 {[%clk 0:02:42]} 11. Qb4 {[%clk 0:02:37]}  Bc8 {[%clk 0:02:28]} 12. Qc4 {[%clk 0:02:35]}  Rb8 {[%clk 0:02:04]} 13. Be3 {[%clk 0:02:07]}  a6 {[%clk 0:02:00]} 14. Nc7+ {[%clk 0:01:32]}  Kd7 {[%clk 0:01:58]} 15. Bb6 {[%clk 0:01:31]}  Qh4 {[%clk 0:01:58]} 16. g4 {[%clk 0:00:45]}  h5 {[%clk 0:01:57]} 17. Ne6 {[%clk 0:00:33]}  fxe6 {[%clk 0:01:21]} 18. Qc7+ {[%clk 0:00:33]}  Ke8 {[%clk 0:01:21]} 19. Qxb8 {[%clk 0:00:33]}  Ne7 {[%clk 0:01:18]} 20. Qxd6 {[%clk 0:00:30]}  Qxg4 {[%clk 0:00:56]} 21. dxe6 {[%clk 0:00:20]}  Bxe6 {[%clk 0:00:47]} 22. Be2 {[%clk 0:00:17]}  Qe4 {[%clk 0:00:38]} 23. Rg1 {[%clk 0:00:16]}  Kf7 {[%clk 0:00:31]} 24. Qd3 {[%clk 0:00:10]}  Qc6 {[%clk 0:00:24]} 25. Be3 {[%clk 0:00:06]}  Bf5 {[%clk 0:00:16]} 26. Qd2 {[%clk 0:00:04]}  Nd5 {[%clk 0:00:14]} 27. O-O-O {[%clk 0:00:04]}  Nf6 {[%clk 0:00:09]} 28. Bd3 {[%clk 0:00:04]}  Bxd3 {[%clk 0:00:06]} 29. Qxd3 {[%clk 0:00:04]}  Be7 {[%clk 0:00:06]} 30. Bg5 {[%clk 0:00:03]}  Qa4 {[%clk 0:00:04]} 31. Kb1 {[%clk 0:00:02]}  Rd8 {[%clk 0:00:03]} 32. Qe2 {[%clk 0:00:02]}  Rc8 {[%clk 0:00:03]} 33. Bxf6 {[%clk 0:00:01]}  Bxf6 {[%clk 0:00:04]} 34. Qxh5+ {[%clk 0:00:02]}  Kf8 {[%clk 0:00:04]} 35. Qg4 {[%clk 0:00:02]}  Qc6 {[%clk 0:00:02]} 36. Qe2 {[%clk 0:00:01]}  Re8 {[%clk 0:00:02]} 37. Rg3 {[%clk 0:00:01]}  e4 {[%clk 0:00:02]} 38. Re3 {[%clk 0:00:01]}  Bg5 {[%clk 0:00:02]} 39. Rg3 {[%clk 0:00:01]}  Bf6 {[%clk 0:00:02]} 40. Rg4 {[%clk 0:00:02]}  Qd5 {[%clk 0:00:01]} 41. Rxd5 {[%clk 0:00:02]}  Re7 {[%clk 0:00:01]} 42. Rxe4 {[%clk 0:00:02]}  Kf7 {[%clk 0:00:02]} 43. Rxe7+ {[%clk 0:00:02]} 1-0


[Site "https://www.chess.com"]

[Event "Titled Tuesday Blitz February 28 Early 2023"]
[White "Coelho, Ramyres Santana"]
[Black "Martic, Ivan"]
[WhiteFideId "2120690"]
[BlackFideId "929301"]
[WhiteElo "1888"]
[BlackElo "2360"]
[Result "0-1"]
[Round "08"]
[TimeControl "180+2"]
[Date "2023.02.28"]
[WhiteClock "0:00:01"]
[BlackClock "0:01:44"]

1. e4 {[%clk 0:02:42]}  c5 {[%clk 0:03:00]} 2. Nf3 {[%clk 0:02:42]}  e6 {[%clk 0:03:00]} 3. d4 {[%clk 0:02:42]}  cxd4 {[%clk 0:03:01]} 4. c3 {[%clk 0:02:42]}  dxc3 {[%clk 0:02:58]} 5. Nxc3 {[%clk 0:02:43]}  a6 {[%clk 0:02:59]} 6. Bc4 {[%clk 0:02:43]}  Nc6 {[%clk 0:02:59]} 7. O-O {[%clk 0:02:43]}  d6 {[%clk 0:02:59]} 8. Qe2 {[%clk 0:02:43]}  Nf6 {[%clk 0:02:58]} 9. Rd1 {[%clk 0:02:43]}  Qc7 {[%clk 0:02:50]} 10. Bf4 {[%clk 0:02:41]}  e5 {[%clk 0:02:49]} 11. Bg5 {[%clk 0:02:38]}  Be7 {[%clk 0:02:48]} 12. Bxf6 {[%clk 0:02:36]}  Bxf6 {[%clk 0:02:49]} 13. Nd5 {[%clk 0:02:36]}  Qd8 {[%clk 0:02:49]} 14. Rac1 {[%clk 0:02:34]}  O-O {[%clk 0:02:48]} 15. Qd2 {[%clk 0:02:26]}  Bg4 {[%clk 0:02:42]} 16. Nxf6+ {[%clk 0:02:22]}  Qxf6 {[%clk 0:02:43]} 17. Qxd6 {[%clk 0:02:22]}  Bxf3 {[%clk 0:02:37]} 18. Qxf6 {[%clk 0:02:20]}  gxf6 {[%clk 0:02:38]} 19. gxf3 {[%clk 0:02:20]}  Nd4 {[%clk 0:02:39]} 20. Bd5 {[%clk 0:02:11]}  Ne2+ {[%clk 0:02:38]} 21. Kh1 {[%clk 0:02:07]}  Nxc1 {[%clk 0:02:39]} 22. Rxc1 {[%clk 0:02:07]}  Rac8 {[%clk 0:02:39]} 23. Rg1+ {[%clk 0:02:05]}  Kh8 {[%clk 0:02:38]} 24. Bxb7 {[%clk 0:02:06]}  Rc2 {[%clk 0:02:27]} 25. Bxa6 {[%clk 0:02:05]}  Rxb2 {[%clk 0:02:27]} 26. a4 {[%clk 0:02:06]}  Ra8 {[%clk 0:02:23]} 27. Bb5 {[%clk 0:02:05]}  Rxf2 {[%clk 0:02:23]} 28. Rc1 {[%clk 0:00:57]}  Ra2 {[%clk 0:02:14]} 29. Rc7 {[%clk 0:00:29]}  Rd8 {[%clk 0:02:13]} 30. Rc1 {[%clk 0:00:19]}  Rdd2 {[%clk 0:02:11]} 31. Rc8+ {[%clk 0:00:16]}  Kg7 {[%clk 0:02:11]} 32. Rc1 {[%clk 0:00:17]}  Rxh2+ {[%clk 0:02:09]} 33. Kg1 {[%clk 0:00:17]}  Rhb2 {[%clk 0:02:07]} 34. Kh1 {[%clk 0:00:14]}  Kg6 {[%clk 0:02:06]} 35. Kg1 {[%clk 0:00:14]}  Kg5 {[%clk 0:02:06]} 36. Kh1 {[%clk 0:00:15]}  Kf4 {[%clk 0:02:06]} 37. Kg1 {[%clk 0:00:07]}  Kg3 {[%clk 0:02:05]} 38. Kf1 {[%clk 0:00:06]}  Rh2 {[%clk 0:02:03]} 39. Ke1 {[%clk 0:00:02]}  h5 {[%clk 0:01:58]} 40. Bf1 {[%clk 0:00:03]}  Rxa4 {[%clk 0:01:51]} 41. f4 {[%clk 0:00:04]}  Rxe4+ {[%clk 0:01:47]} 42. Kd1 {[%clk 0:00:03]}  Rf2 {[%clk 0:01:45]} 43. Rc3+ {[%clk 0:00:02]}  Kxf4 {[%clk 0:01:44]} 44. Rf3+ {[%clk 0:00:01]}  Kxf3 {[%clk 0:01:44]} 0-1


[Site "https://www.chess.com"]

[Event "Titled Tuesday Blitz February 28 Early 2023"]
[White "Berkes, Ferenc"]
[Black "Mirzanurov, Bulat"]
[WhiteFideId "718572"]
[BlackFideId "4184521"]
[WhiteElo "2664"]
[BlackElo "2019"]
[Result "1-0"]
[Round "08"]
[TimeControl "180+2"]
[Date "2023.02.28"]
[WhiteClock "0:00:18"]
[BlackClock "0:00:23"]

1. e4 {[%clk 0:01:42]}  c5 {[%clk 0:02:57]} 2. Nf3 {[%clk 0:01:41]}  d6 {[%clk 0:02:57]} 3. d4 {[%clk 0:01:40]}  cxd4 {[%clk 0:02:58]} 4. Nxd4 {[%clk 0:01:40]}  Nf6 {[%clk 0:02:59]} 5. Nc3 {[%clk 0:01:40]}  a6 {[%clk 0:02:59]} 6. Bg5 {[%clk 0:01:41]}  Nbd7 {[%clk 0:02:58]} 7. f4 {[%clk 0:01:40]}  Qa5 {[%clk 0:02:57]} 8. Nb3 {[%clk 0:01:39]}  Qc7 {[%clk 0:02:56]} 9. Qe2 {[%clk 0:01:39]}  e6 {[%clk 0:02:52]} 10. O-O-O {[%clk 0:01:38]}  Be7 {[%clk 0:02:51]} 11. g4 {[%clk 0:01:37]}  O-O {[%clk 0:02:50]} 12. h4 {[%clk 0:01:35]}  b5 {[%clk 0:02:49]} 13. Bxf6 {[%clk 0:01:28]}  Nxf6 {[%clk 0:02:48]} 14. g5 {[%clk 0:01:27]}  Nd7 {[%clk 0:02:47]} 15. h5 {[%clk 0:01:12]}  b4 {[%clk 0:02:39]} 16. Nb1 {[%clk 0:01:12]}  a5 {[%clk 0:02:38]} 17. g6 {[%clk 0:01:10]}  h6 {[%clk 0:02:33]} 18. gxf7+ {[%clk 0:01:09]}  Rxf7 {[%clk 0:02:32]} 19. Nd4 {[%clk 0:01:03]}  Nc5 {[%clk 0:02:26]} 20. f5 {[%clk 0:01:02]}  e5 {[%clk 0:02:24]} 21. Nf3 {[%clk 0:00:59]}  Bb7 {[%clk 0:02:22]} 22. Nbd2 {[%clk 0:00:54]}  a4 {[%clk 0:02:21]} 23. Qc4 {[%clk 0:00:50]}  b3 {[%clk 0:02:16]} 24. Kb1 {[%clk 0:00:41]}  bxa2+ {[%clk 0:02:02]} 25. Qxa2 {[%clk 0:00:35]}  Nxe4 {[%clk 0:01:57]} 26. Bc4 {[%clk 0:00:34]}  d5 {[%clk 0:01:47]} 27. Bxd5 {[%clk 0:00:29]}  Bxd5 {[%clk 0:01:46]} 28. Qxd5 {[%clk 0:00:29]}  Nc3+ {[%clk 0:01:39]} 29. bxc3 {[%clk 0:00:23]}  Rb8+ {[%clk 0:01:39]} 30. Nb3 {[%clk 0:00:20]}  axb3 {[%clk 0:01:38]} 31. Nxe5 {[%clk 0:00:19]}  bxc2+ {[%clk 0:01:38]} 32. Kxc2 {[%clk 0:00:20]}  Bf6 {[%clk 0:01:02]} 33. Qxf7+ {[%clk 0:00:19]}  Qxf7 {[%clk 0:01:01]} 34. Nxf7 {[%clk 0:00:20]}  Kxf7 {[%clk 0:01:02]} 35. Rd3 {[%clk 0:00:19]}  Rb5 {[%clk 0:01:01]} 36. Rf3 {[%clk 0:00:20]}  Be5 {[%clk 0:00:59]} 37. Rd1 {[%clk 0:00:20]}  Kf6 {[%clk 0:00:59]} 38. Kd3 {[%clk 0:00:20]}  Rc5 {[%clk 0:00:58]} 39. c4 {[%clk 0:00:19]}  Bc7 {[%clk 0:00:55]} 40. Rb1 {[%clk 0:00:20]}  Rc6 {[%clk 0:00:46]} 41. Rb5 {[%clk 0:00:19]}  Rd6+ {[%clk 0:00:45]} 42. Rd5 {[%clk 0:00:19]}  Rc6 {[%clk 0:00:40]} 43. c5 {[%clk 0:00:19]}  Ra6 {[%clk 0:00:30]} 44. Kc4 {[%clk 0:00:19]}  Ra4+ {[%clk 0:00:31]} 45. Kb5 {[%clk 0:00:19]}  Rh4 {[%clk 0:00:28]} 46. Rd7 {[%clk 0:00:18]}  Be5 {[%clk 0:00:27]} 47. c6 {[%clk 0:00:19]}  Rxh5 {[%clk 0:00:26]} 48. c7 {[%clk 0:00:19]}  Bxc7 {[%clk 0:00:26]} 49. Rxc7 {[%clk 0:00:19]}  Rxf5+ {[%clk 0:00:21]} 50. Rxf5+ {[%clk 0:00:18]}  Kxf5 {[%clk 0:00:22]} 51. Rxg7 {[%clk 0:00:18]}  h5 {[%clk 0:00:22]} 52. Kc4 {[%clk 0:00:18]}  h4 {[%clk 0:00:22]} 53. Kd3 {[%clk 0:00:18]}  Kf4 {[%clk 0:00:23]} 54. Ke2 {[%clk 0:00:18]}  h3 {[%clk 0:00:23]} 55. Kf2 {[%clk 0:00:18]} 1-0


[Site "https://www.chess.com"]

[Event "Titled Tuesday Blitz February 28 Early 2023"]
[White "Van Dael, Siem"]
[Black "Kislov, Oleg"]
[WhiteFideId "1049771"]
[BlackFideId "13503774"]
[WhiteElo "2336"]
[BlackElo "2186"]
[Result "1/2-1/2"]
[Round "08"]
[TimeControl "180+2"]
[Date "2023.02.28"]
[WhiteClock "0:00:23"]
[BlackClock "0:00:17"]

1. e4 {[%clk 0:03:00]}  c5 {[%clk 0:02:58]} 2. Nf3 {[%clk 0:03:00]}  Nc6 {[%clk 0:02:58]} 3. d4 {[%clk 0:03:01]}  cxd4 {[%clk 0:02:57]} 4. Nxd4 {[%clk 0:03:01]}  e5 {[%clk 0:02:58]} 5. Nb5 {[%clk 0:03:01]}  d6 {[%clk 0:02:57]} 6. c4 {[%clk 0:03:00]}  Be7 {[%clk 0:02:56]} 7. N5c3 {[%clk 0:02:59]}  Nf6 {[%clk 0:02:46]} 8. Bd3 {[%clk 0:02:54]}  O-O {[%clk 0:02:43]} 9. O-O {[%clk 0:02:54]}  Be6 {[%clk 0:02:39]} 10. Nd5 {[%clk 0:02:50]}  Bxd5 {[%clk 0:02:36]} 11. cxd5 {[%clk 0:02:50]}  Nd4 {[%clk 0:02:33]} 12. Be3 {[%clk 0:02:50]}  Nd7 {[%clk 0:02:33]} 13. Na3 {[%clk 0:02:47]}  a6 {[%clk 0:02:27]} 14. Nc2 {[%clk 0:02:46]}  Nxc2 {[%clk 0:02:24]} 15. Qxc2 {[%clk 0:02:46]}  Rc8 {[%clk 0:02:17]} 16. Qb3 {[%clk 0:02:44]}  b5 {[%clk 0:02:07]} 17. a4 {[%clk 0:02:44]}  Nc5 {[%clk 0:02:03]} 18. Bxc5 {[%clk 0:02:43]}  Rxc5 {[%clk 0:02:03]} 19. axb5 {[%clk 0:02:43]}  axb5 {[%clk 0:02:03]} 20. Rfc1 {[%clk 0:02:35]}  Qb6 {[%clk 0:01:51]} 21. Rxc5 {[%clk 0:02:32]}  Qxc5 {[%clk 0:01:48]} 22. Qxb5 {[%clk 0:02:32]}  Qxb5 {[%clk 0:01:45]} 23. Bxb5 {[%clk 0:02:33]}  Rb8 {[%clk 0:01:45]} 24. Bc6 {[%clk 0:02:32]}  Rxb2 {[%clk 0:01:43]} 25. Ra8+ {[%clk 0:02:30]}  Bf8 {[%clk 0:01:43]} 26. g3 {[%clk 0:02:30]}  g6 {[%clk 0:01:32]} 27. Kg2 {[%clk 0:02:29]}  Kg7 {[%clk 0:01:29]} 28. h4 {[%clk 0:02:28]}  h5 {[%clk 0:01:23]} 29. Ra7 {[%clk 0:02:27]}  Rb8 {[%clk 0:01:21]} 30. Bd7 {[%clk 0:02:25]}  Kf6 {[%clk 0:01:19]} 31. Kh3 {[%clk 0:02:19]}  Be7 {[%clk 0:01:18]} 32. f3 {[%clk 0:02:10]}  Bd8 {[%clk 0:01:16]} 33. Be8 {[%clk 0:02:03]}  Be7 {[%clk 0:01:11]} 34. Bc6 {[%clk 0:02:01]}  Rb3 {[%clk 0:00:56]} 35. Kg2 {[%clk 0:01:50]}  Rb2+ {[%clk 0:00:56]} 36. Kg1 {[%clk 0:01:46]}  Bd8 {[%clk 0:00:53]} 37. Rb7 {[%clk 0:01:18]}  Rxb7 {[%clk 0:00:34]} 38. Bxb7 {[%clk 0:01:19]}  g5 {[%clk 0:00:33]} 39. hxg5+ {[%clk 0:01:16]}  Kxg5 {[%clk 0:00:34]} 40. Bc6 {[%clk 0:01:16]}  h4 {[%clk 0:00:32]} 41. Kg2 {[%clk 0:01:07]}  Ba5 {[%clk 0:00:29]} 42. Be8 {[%clk 0:00:50]}  f6 {[%clk 0:00:28]} 43. Bd7 {[%clk 0:00:48]}  Be1 {[%clk 0:00:26]} 44. f4+ {[%clk 0:00:42]}  exf4 {[%clk 0:00:22]} 45. gxh4+ {[%clk 0:00:42]}  Bxh4 {[%clk 0:00:18]} 46. Kf3 {[%clk 0:00:43]}  Bg3 {[%clk 0:00:18]} 47. Bg4 {[%clk 0:00:42]}  Kh6 {[%clk 0:00:18]} 48. Bf5 {[%clk 0:00:42]}  Kg7 {[%clk 0:00:19]} 49. Kg4 {[%clk 0:00:42]}  Kf8 {[%clk 0:00:18]} 50. Kh5 {[%clk 0:00:36]}  Ke7 {[%clk 0:00:18]} 51. Kg4 {[%clk 0:00:36]}  Kd8 {[%clk 0:00:18]} 52. Kf3 {[%clk 0:00:36]}  Kc7 {[%clk 0:00:19]} 53. Ke2 {[%clk 0:00:36]}  Kb6 {[%clk 0:00:19]} 54. Bg4 {[%clk 0:00:35]}  Kc5 {[%clk 0:00:19]} 55. Kd3 {[%clk 0:00:36]}  Kb4 {[%clk 0:00:20]} 56. Bf3 {[%clk 0:00:36]}  Kb3 {[%clk 0:00:19]} 57. Bd1+ {[%clk 0:00:34]}  Kb2 {[%clk 0:00:20]} 58. Be2 {[%clk 0:00:33]}  Kc1 {[%clk 0:00:20]} 59. Bf3 {[%clk 0:00:33]}  Bf2 {[%clk 0:00:18]} 60. Bg4 {[%clk 0:00:29]}  Bc5 {[%clk 0:00:17]} 61. Bh5 {[%clk 0:00:28]}  Ba3 {[%clk 0:00:17]} 62. Kc3 {[%clk 0:00:27]}  Bb2+ {[%clk 0:00:17]} 63. Kd3 {[%clk 0:00:23]}  Be5 {[%clk 0:00:17]} 64. Ke2 {[%clk 0:00:22]}  Kc2 {[%clk 0:00:17]} 65. Kf3 {[%clk 0:00:22]}  Kd3 {[%clk 0:00:17]} 66. Bg4 {[%clk 0:00:23]}  Kd4 {[%clk 0:00:17]} 67. Be6 {[%clk 0:00:23]} 1/2-1/2


[Site "https://www.chess.com"]

[Event "Titled Tuesday Blitz February 28 Early 2023"]
[White "Belov, Alexei"]
[Black "Skaric, Djuro"]
[WhiteFideId "4128206"]
[BlackFideId "934569"]
[WhiteElo "2495"]
[BlackElo "2282"]
[Result "1-0"]
[Round "08"]
[TimeControl "180+2"]
[Date "2023.02.28"]
[WhiteClock "0:00:14"]
[BlackClock "0:00:11"]

1. e4 {[%clk 0:03:00]}  d6 {[%clk 0:03:00]} 2. d4 {[%clk 0:03:00]}  g6 {[%clk 0:03:00]} 3. Nc3 {[%clk 0:03:00]}  Bg7 {[%clk 0:03:00]} 4. f4 {[%clk 0:03:01]}  Nf6 {[%clk 0:03:01]} 5. Nf3 {[%clk 0:03:01]}  O-O {[%clk 0:03:00]} 6. Be3 {[%clk 0:03:01]}  Ng4 {[%clk 0:02:58]} 7. Bg1 {[%clk 0:02:59]}  e5 {[%clk 0:02:57]} 8. dxe5 {[%clk 0:02:45]}  Nc6 {[%clk 0:02:52]} 9. h3 {[%clk 0:02:42]}  Nh6 {[%clk 0:02:52]} 10. exd6 {[%clk 0:02:39]}  cxd6 {[%clk 0:02:51]} 11. Bd3 {[%clk 0:02:22]}  Re8 {[%clk 0:02:51]} 12. Qd2 {[%clk 0:02:19]}  Nf5 {[%clk 0:02:50]} 13. O-O-O {[%clk 0:02:17]}  Nfd4 {[%clk 0:02:35]} 14. Nxd4 {[%clk 0:02:15]}  Nxd4 {[%clk 0:02:34]} 15. Nd5 {[%clk 0:02:14]}  Be6 {[%clk 0:02:29]} 16. Bxd4 {[%clk 0:01:55]}  Bxd4 {[%clk 0:02:27]} 17. Bb5 {[%clk 0:01:55]}  Bg7 {[%clk 0:01:38]} 18. Bxe8 {[%clk 0:01:54]}  Qxe8 {[%clk 0:01:38]} 19. Nc7 {[%clk 0:01:28]}  Qa4 {[%clk 0:01:38]} 20. Nxa8 {[%clk 0:01:28]}  Qxa2 {[%clk 0:01:37]} 21. Qb4 {[%clk 0:01:27]}  a5 {[%clk 0:01:23]} 22. Qxb7 {[%clk 0:01:19]}  a4 {[%clk 0:01:20]} 23. Kd2 {[%clk 0:00:59]}  Bxb2 {[%clk 0:01:15]} 24. Nc7 {[%clk 0:00:52]}  Qc4 {[%clk 0:00:31]} 25. Qxb2 {[%clk 0:00:44]}  Qxc7 {[%clk 0:00:29]} 26. Ke3 {[%clk 0:00:40]}  Qa5 {[%clk 0:00:26]} 27. Rd3 {[%clk 0:00:33]}  g5 {[%clk 0:00:24]} 28. g3 {[%clk 0:00:33]}  h5 {[%clk 0:00:23]} 29. Ra1 {[%clk 0:00:30]}  Qc5+ {[%clk 0:00:22]} 30. Rd4 {[%clk 0:00:25]}  gxf4+ {[%clk 0:00:20]} 31. gxf4 {[%clk 0:00:25]}  Bxh3 {[%clk 0:00:20]} 32. Rg1+ {[%clk 0:00:24]}  Bg4 {[%clk 0:00:20]} 33. f5 {[%clk 0:00:20]}  Qe5 {[%clk 0:00:19]} 34. Qb8+ {[%clk 0:00:19]}  Kh7 {[%clk 0:00:16]} 35. Qxd6 {[%clk 0:00:20]}  Qg7 {[%clk 0:00:16]} 36. f6 {[%clk 0:00:17]}  Qg5+ {[%clk 0:00:16]} 37. Qf4 {[%clk 0:00:18]}  Qh4 {[%clk 0:00:16]} 38. Rxg4 {[%clk 0:00:18]}  hxg4 {[%clk 0:00:14]} 39. Rd7 {[%clk 0:00:17]}  Qe1+ {[%clk 0:00:14]} 40. Kd3 {[%clk 0:00:15]}  Qd1+ {[%clk 0:00:14]} 41. Qd2 {[%clk 0:00:15]}  Qf1+ {[%clk 0:00:12]} 42. Kc3 {[%clk 0:00:15]}  g3 {[%clk 0:00:12]} 43. Rxf7+ {[%clk 0:00:13]}  Kg6 {[%clk 0:00:12]} 44. Rg7+ {[%clk 0:00:13]}  Kxf6 {[%clk 0:00:13]} 45. Qg5+ {[%clk 0:00:14]}  Ke6 {[%clk 0:00:12]} 46. Qd5+ {[%clk 0:00:14]}  Kf6 {[%clk 0:00:12]} 47. Qf7+ {[%clk 0:00:14]}  Ke5 {[%clk 0:00:11]} 48. Qxf1 {[%clk 0:00:15]}  g2 {[%clk 0:00:12]} 49. Rxg2 {[%clk 0:00:14]}  a3 {[%clk 0:00:11]} 50. Qf5+ {[%clk 0:00:14]} 1-0


[Site "https://www.chess.com"]

[Event "Titled Tuesday Blitz February 28 Early 2023"]
[White "Delgado Rosas, Fatima Alexandra"]
[Black "Baches Garcia, Guillermo"]
[WhiteFideId "6603963"]
[BlackFideId "2209764"]
[WhiteElo "2331"]
[BlackElo "2493"]
[Result "0-1"]
[Round "08"]
[TimeControl "180+2"]
[Date "2023.02.28"]
[WhiteClock "0:02:27"]
[BlackClock "0:02:06"]

1. d4 {[%clk 0:02:56]}  Nf6 {[%clk 0:03:00]} 2. c4 {[%clk 0:02:55]}  e6 {[%clk 0:03:00]} 3. Nc3 {[%clk 0:02:55]}  d5 {[%clk 0:03:01]} 4. cxd5 {[%clk 0:02:55]}  Nxd5 {[%clk 0:03:02]} 5. Nf3 {[%clk 0:02:55]}  c5 {[%clk 0:03:01]} 6. Nxd5 {[%clk 0:02:52]}  Qxd5 {[%clk 0:03:01]} 7. e3 {[%clk 0:02:45]}  Nc6 {[%clk 0:02:57]} 8. Bb5 {[%clk 0:02:38]}  cxd4 {[%clk 0:02:51]} 9. Bxc6+ {[%clk 0:02:37]}  bxc6 {[%clk 0:02:37]} 10. Qxd4 {[%clk 0:02:35]}  Ba6 {[%clk 0:02:30]} 11. Bd2 {[%clk 0:02:32]}  Rd8 {[%clk 0:02:18]} 12. Bc3 {[%clk 0:02:27]}  Qb5 {[%clk 0:02:06]} 0-1


[Site "https://www.chess.com"]